fUSD/lending_fUSD_20240627
["ID","MTS","AMOUNT","RATE_DAILY","PERIOD"]
[330474279,1719470664591,-2607.76,0.00043835,120]
[330474280,1719470664632,-500.0,0.00043835,120]
[330474281,1719470664673,-654.07,0.00043835,120]
[330474282,1719470664714,-500.0,0.00043835,120]
[330474283,1719470664755,-2637.52,0.00043835,120]
[330474284,1719470665026,-857.95,0.00043835,120]
[330474285,1719470665067,-500.0,0.00043835,120]
[330474286,1719470665110,-500.0,0.00043835,120]
[330474287,1719470665154,-500.0,0.00043835,120]
[330474288,1719470665196,-1241.05,0.00043835,120]
[330474289,1719470665241,-1528.34,0.00043835,120]
[330474290,1719470665288,-1243.06,0.00043835,120]
[330474291,1719470665331,-614.82,0.00043835,120]
[330474292,1719470665375,-599.43,0.00043835,120]
[330474293,1719470665419,-500.0,0.00043835,120]
[330474294,1719470665467,-2956.73,0.00043835,120]
[330474295,1719470665510,-500.0,0.00043835,120]
[330474296,1719470665554,-2842.63,0.00043835,120]
[330474297,1719470665598,-500.0,0.00043835,120]
[330474298,1719470665640,-500.0,0.00043835,120]
[330474299,1719470665682,-500.0,0.00043835,120]
[330474300,1719470665724,-500.0,0.00043835,120]
[330474301,1719470665767,-2993.93,0.00043835,120]
[330474302,1719470665808,-1421.68,0.00043835,120]
[330474303,1719470665864,-524.85768805,0.00043835,120]
[330474304,1719470665906,-1434.05,0.00043835,120]
[330474305,1719470665948,-500.0,0.00043835,120]
[330474306,1719470665995,-1696.42,0.00043835,120]
[330474307,1719470666045,-500.0,0.00043835,120]
[330474308,1719470666088,-500.0,0.00043835,120]
[330474309,1719470666132,-1467.7,0.00043835,120]
[330474310,1719470666177,-500.0,0.00043835,120]
[330474311,1719470666220,-1353.69,0.00043835,120]
[330474312,1719470666264,-500.0,0.00043835,30]
[330474313,1719470666308,-1355.24,0.00043835,120]
[330474314,1719470666351,-739.8,0.00043835,120]
[330474315,1719470666394,-1735.71,0.00043835,120]
[330474316,1719470666436,-500.0,0.00043835,120]
[330474317,1719470666478,-459.4296308,0.00043835,120]
[330474318,1719470666520,-4581.39,0.00043835,120]
[330474319,1719470666564,-1599.7,0.00043835,120]
[330474320,1719470666606,-539.42,0.00043835,120]
[330474321,1719470666648,-660.15,0.00043835,120]
[330474322,1719470666691,-500.0,0.00043835,120]
[330474323,1719470666735,-1026.48,0.00043835,120]
[330474324,1719470666778,-500.0,0.00043835,120]
[330474325,1719470666825,-500.0,0.00043835,120]
[330474326,1719470666868,-500.0,0.00043835,120]
[330474327,1719470666913,-437.30959829,0.00043835,120]
[330474328,1719470666957,-1861.22,0.00043835,120]
[330474329,1719470667001,-500.0,0.00043835,120]
[330474330,1719470667048,-500.0,0.00043835,120]
[330474331,1719470667093,-3052.96,0.00043835,120]
[330474332,1719470667136,-500.0,0.00043835,120]
[330474333,1719470667181,-1532.25,0.00043835,120]
[330474334,1719470667225,-686.01,0.00043835,120]
[330474335,1719470667269,-523.58620196,0.00043835,120]
[330474336,1719470667316,-500.0,0.00043835,120]
[330474337,1719470667359,-611.37,0.00043835,120]
[330474338,1719470667405,-500.0,0.00043835,120]
[330474339,1719470667453,-13168.55,0.00043835,120]
[330474340,1719470667500,-500.0,0.00043835,120]
[330474341,1719470667544,-500.0,0.00043835,120]
[330474342,1719470667587,-912.18,0.00043835,120]
[330474343,1719470667630,-2729.24,0.00043835,120]
[330474344,1719470667670,-500.0,0.00043835,120]
[330474345,1719470667714,-500.0,0.00043835,120]
[330474346,1719470667757,-500.0,0.00043835,120]
[330474347,1719470667804,-1277.7,0.00043835,120]
[330474348,1719470667848,-500.0,0.00043835,120]
[330474349,1719470667891,-655.5,0.00043835,120]
[330474350,1719470667935,-1392.52,0.00043835,120]
[330474351,1719470667976,-500.0,0.00043835,120]
[330474352,1719470668021,-1933.0,0.00043835,120]
[330474353,1719470668068,-500.0,0.00043835,120]
[330474354,1719470668111,-514.77,0.00043835,120]
[330474355,1719470668152,-500.0,0.00043835,120]
[330474356,1719470668196,-9974.49,0.00043835,120]
[330474357,1719470668241,-583.66,0.00043835,120]
[330474358,1719470668285,-1517.79,0.00043835,120]
[330474359,1719470668330,-634.16,0.00043835,120]
[330474360,1719470668374,-5000.0,0.00043835,120]
[330474361,1719470668419,-500.0,0.00043835,120]
[330474362,1719470668465,-3269.26,0.00043835,120]
[330474363,1719470668511,-500.0,0.00043835,120]
[330474364,1719470668556,-797.77,0.00043835,120]
[330474365,1719470668602,-1350.04,0.00043835,120]
[330474366,1719470668646,-1832.51,0.00043835,120]
[330474367,1719470668690,-921.78,0.00043835,120]
[330474368,1719470668735,-500.0,0.00043835,120]
[330474369,1719470668783,-500.0,0.00043835,120]
[330474370,1719470668827,-729.19,0.00043835,120]
[330474371,1719470668870,-500.0,0.00043835,120]
[330474372,1719470668914,-548.8040129,0.00043835,120]
[330474373,1719470668957,-500.0,0.00043835,120]
[330474374,1719470669001,-522.15,0.00043835,120]
[330474375,1719470669044,-1060.24,0.00043835,120]
[330474376,1719470669088,-500.0,0.00043835,120]
[330474377,1719470669133,-500.0,0.00043835,120]
[330474378,1719470669178,-776.41,0.00043835,120]
[330474379,1719470669222,-500.0,0.00043835,120]
[330474380,1719470669266,-500.0,0.00043835,120]
[330474381,1719470669308,-700.49,0.00043835,120]
[330474382,1719470669353,-606.47,0.00043835,120]
[330474383,1719470669400,-500.0,0.00043835,120]
[330474384,1719470669444,-14200.23,0.00043835,120]
[330474385,1719470669486,-500.0,0.00043835,120]
[330474386,1719470669528,-501.44966363,0.00043835,120]
[330474387,1719470669952,-918.88,0.00043835,120]
[330474388,1719470669998,-1009.11,0.00043835,120]
[330474389,1719470670044,-1310.91,0.00043835,120]
[330474390,1719470670088,-500.0,0.00043835,120]
[330474391,1719470670131,-3303.62,0.00043835,120]
[330474392,1719470670172,-500.0,0.00043835,120]
[330474393,1719470670218,-603.34,0.00043835,120]
[330474394,1719470670260,-500.0,0.00043835,120]
[330474395,1719470670302,-5624.09,0.00043835,120]
[330474396,1719470670344,-1064.57,0.00043835,120]
[330474397,1719470670388,-2268.05,0.00043835,120]
[330474398,1719470670429,-6475.81,0.00043835,120]
[330474399,1719470670471,-500.0,0.00043835,120]
[330474400,1719470670511,-500.0,0.00043835,120]
[330474401,1719470670551,-500.0,0.00043835,120]
[330474402,1719470670594,-500.0,0.00043835,120]
[330474403,1719470670636,-500.0,0.00043835,120]
[330474404,1719470670679,-373.88725807,0.00043835,120]
[330474405,1719470670722,-1060.11,0.00043835,120]
[330474406,1719470670762,-1096.03,0.00043835,120]
[330474407,1719470670805,-1078.35,0.00043835,120]
[330474408,1719470670847,-870.79,0.00043835,120]
[330474409,1719470670888,-1111.28,0.00043835,120]
[330474410,1719470670930,-742.35,0.00043835,120]
[330474411,1719470670971,-500.0,0.00043835,120]
[330474412,1719470671012,-500.0,0.00043835,120]
[330474413,1719470671060,-500.0,0.00043835,120]
[330474414,1719470671104,-736.85,0.00043835,120]
[330474415,1719470671145,-500.0,0.00043835,120]
[330474416,1719470671185,-785.72,0.00043835,120]
[330474417,1719470671225,-775.71,0.00043835,120]
[330474418,1719470671267,-513.4208289,0.00043835,120]
[330474419,1719470671309,-516.57,0.00043835,120]
[330474420,1719470671351,-822.24,0.00043835,120]
[330474421,1719470671392,-513.48530796,0.00043835,120]
[330474422,1719470671433,-500.0,0.00043835,120]
[330474423,1719470671474,-500.0,0.00043835,120]
[330474424,1719470671516,-507.98,0.00043835,120]
[330474425,1719470671557,-500.0,0.00043835,120]
[330474426,1719470671599,-1114.77,0.00043835,120]
[330474427,1719470671640,-1964.9,0.00043835,120]
[330474428,1719470671682,-1587.69,0.00043835,120]
[330474429,1719470671725,-1121.91,0.00043835,120]
[330474430,1719470671766,-500.0,0.00043835,120]
[330474431,1719470671806,-1461.38,0.00043835,120]
[330474432,1719470671848,-1850.92,0.00043835,120]
[330474433,1719470671892,-521.79,0.00043835,120]
[330474434,1719470671933,-500.0,0.00043835,120]
[330474435,1719470671976,-500.0,0.00043835,120]
[330474436,1719470672021,-1850.92,0.00043835,120]
[330474437,1719470672064,-848.64,0.00043835,120]
[330474438,1719470672109,-1359.96,0.00043835,120]
[330474439,1719470672156,-1850.92,0.00043835,120]
[330474440,1719470672197,-500.0,0.00043835,120]
[330474441,1719470672238,-1850.92,0.00043835,120]
[330474442,1719470672274,-500.0,0.00043835,120]
[330474443,1719470672314,-1872.76,0.00043835,120]
[330474444,1719470672353,-1612.76,0.00043835,120]
[330474445,1719470672394,-1850.92,0.00043835,120]
[330474446,1719470672436,-1850.92,0.00043835,120]
[330474447,1719470672475,-1850.92,0.00043835,120]
[330474448,1719470672513,-500.0,0.00043835,120]
[330474449,1719470672554,-1850.92,0.00043835,120]
[330474450,1719470672593,-1700.02,0.00043835,120]
[330474451,1719470672632,-500.0,0.00043835,120]
[330474452,1719470672672,-1850.92,0.00043835,120]
[330474453,1719470672711,-3004.76,0.00043835,120]
[330474454,1719470672756,-1850.92,0.00043835,120]
[330474455,1719470672797,-517.55,0.00043835,120]
[330474456,1719470672840,-500.0,0.00043835,120]
[330474457,1719470672882,-1850.92,0.00043835,120]
[330474458,1719470672924,-1850.92,0.00043835,120]
[330474459,1719470672965,-2177.83,0.00043835,120]
[330474460,1719470673009,-1850.92,0.00043835,120]
[330474461,1719470673053,-693.17,0.00043835,120]
[330474462,1719470673096,-1067.42,0.00043835,120]
[330474463,1719470673140,-500.0,0.00043835,120]
[330474464,1719470673184,-1850.92,0.00043835,120]
[330474465,1719470673228,-2331.66,0.00043835,120]
[330474466,1719470673272,-1850.92,0.00043835,120]
[330474467,1719470673316,-380.09571427,0.00043835,120]
[330474468,1719470673360,-1850.92,0.00043835,120]
[330474469,1719470673405,-500.0,0.00043835,120]
[330474470,1719470673451,-1850.92,0.00043835,120]
[330474471,1719470673496,-911.36,0.00043835,120]
[330474472,1719470673543,-3937.4,0.00043835,120]
[330474473,1719470673587,-500.0,0.00043835,120]
[330474474,1719470673632,-1850.92,0.00043835,120]
[330474475,1719470673680,-1850.92,0.00043835,120]
[330474476,1719470673723,-500.0,0.00043835,120]
[330474477,1719470673766,-500.0,0.00043835,120]
[330474478,1719470673809,-500.0,0.00043835,120]
[330474479,1719470673854,-1850.92,0.00043835,120]
[330474480,1719470673897,-500.0,0.00043835,120]
[330474481,1719470673941,-1850.92,0.00043835,120]
[330474482,1719470673986,-2367.38,0.00043835,120]
[330474483,1719470674031,-1850.92,0.00043835,120]
[330474484,1719470674077,-1486.57,0.00043835,120]
[330474485,1719470674118,-500.0,0.00043835,90]
[330474486,1719470674159,-572.89,0.00043835,120]
[330474487,1719470674205,-1850.92,0.00043835,120]
[330474488,1719470674248,-500.0,0.00043835,120]
[330474489,1719470674291,-900.0,0.00043922,30]
[330474490,1719470674564,-500.0,0.00043922,30]
[330474491,1719470674607,-767.77654111,0.00044,30]
[330474492,1719470674653,-679.677911,0.00044,57]
[330474493,1719470674697,-500.0,0.00044078,30]
[330474494,1719470674739,-212.0,0.000441,30]
[330474495,1719470674782,-500.0,0.00044109,120]
[330474496,1719470674824,-1840.86,0.00044109,120]
[330474497,1719470674867,-1367.68,0.00044109,120]
[330474498,1719470674916,-500.0,0.00044109,120]
[330474499,1719470674961,-846.38,0.00044109,120]
[330474500,1719470675007,-1518.38,0.00044109,120]
[330474501,1719470675051,-1190.23,0.00044109,120]
[330474502,1719470675094,-1232.26,0.00044109,120]
[330474503,1719470675138,-500.0,0.00044109,120]
[330474504,1719470675183,-1670.85,0.00044109,120]
[330474505,1719470675228,-500.0,0.00044109,120]
[330474506,1719470675272,-500.0,0.00044109,120]
[330474507,1719470675315,-500.0,0.00044109,120]
[330474508,1719470675358,-2921.04,0.00044109,120]
[330474509,1719470675401,-738.36,0.00044109,120]
[330474510,1719470675444,-500.0,0.00044109,120]
[330474511,1719470675488,-609.6,0.00044109,120]
[330474512,1719470675531,-1022.95,0.00044109,120]
[330474513,1719470675573,-500.0,0.00044109,120]
[330474514,1719470675617,-500.0,0.00044109,120]
[330474515,1719470675661,-2298.25,0.00044109,120]
[330474516,1719470675704,-500.0,0.00044109,120]
[330474517,1719470675747,-1715.04,0.00044109,120]
[330474518,1719470675788,-500.0,0.00044109,120]
[330474519,1719470675833,-500.0,0.00044109,120]
[330474520,1719470675877,-5051.87,0.00044109,120]
[330474521,1719470675920,-567.4075299,0.00044109,120]
[330474522,1719470675962,-552.27,0.00044109,120]
[330474523,1719470676005,-500.0,0.00044109,120]
[330474524,1719470676049,-500.0,0.00044109,120]
[330474525,1719470676099,-500.0,0.00044109,120]
[330474526,1719470676142,-500.0,0.00044109,120]
[330474527,1719470676186,-500.0,0.00044109,120]
[330474528,1719470676229,-500.0,0.00044109,120]
[330474529,1719470676272,-1084.3,0.00044109,120]
[330474530,1719470676314,-500.0,0.00044109,120]
[330474531,1719470676357,-500.0,0.00044109,120]
[330474532,1719470676400,-500.0,0.00044109,120]
[330474533,1719470676443,-500.0,0.00044109,120]
[330474534,1719470676486,-500.0,0.00044109,120]
[330474535,1719470676528,-500.0,0.00044109,120]
[330474536,1719470676570,-563.99,0.00044109,120]
[330474537,1719470676612,-500.0,0.00044109,120]
[330474538,1719470676653,-500.0,0.00044109,120]
[330474539,1719470676694,-500.0,0.00044109,120]
[330474540,1719470676734,-725.04,0.00044109,120]
[330474541,1719470676775,-500.0,0.00044109,120]
[330474542,1719470676816,-500.0,0.00044109,120]
[330474543,1719470676857,-500.0,0.00044109,120]
[330474544,1719470676899,-2049.92,0.00044109,120]
[330474545,1719470676940,-500.0,0.00044109,120]
[330474546,1719470676981,-1276.49,0.00044109,120]
[330474547,1719470677023,-500.0,0.00044109,120]
[330474548,1719470677066,-718.17,0.00044109,120]
[330474549,1719470677106,-507.59298976,0.00044109,120]
[330474550,1719470677148,-500.0,0.00044109,120]
[330474551,1719470677189,-522.15,0.00044109,120]
[330474552,1719470677230,-1268.37,0.00044109,120]
[330474553,1719470677273,-1526.45,0.00044109,120]
[330474554,1719470677314,-500.0,0.00044109,120]
[330474555,1719470677353,-500.0,0.00044109,120]
[330474556,1719470677397,-500.0,0.00044109,120]
[330474557,1719470677441,-500.0,0.00044109,120]
[330474558,1719470677482,-4324.46,0.00044109,120]
[330474559,1719470677524,-500.0,0.00044109,120]
[330474560,1719470677566,-699.36,0.00044109,120]
[330474561,1719470677606,-163.78223099,0.00044109,120]
[330474562,1719470677645,-500.0,0.00044109,120]
[330474563,1719470677687,-696.16,0.00044109,120]
[330474564,1719470677727,-501.54341486,0.00044109,120]
[330474565,1719470677770,-1864.6,0.00044109,120]
[330474566,1719470677812,-2187.6,0.00044109,120]
[330474567,1719470677853,-500.0,0.00044109,120]
[330474568,1719470677894,-523.52925441,0.00044109,120]
[330474569,1719470677936,-1496.44,0.00044109,120]
[330474570,1719470677977,-500.0,0.00044109,120]
[330474571,1719470678018,-500.0,0.00044109,120]
[330474572,1719470678063,-500.0,0.00044109,120]
[330474573,1719470678105,-500.0,0.00044109,120]
[330474574,1719470678149,-500.0,0.00044109,120]
[330474575,1719470678191,-500.0,0.00044109,120]
[330474576,1719470678231,-500.0,0.00044109,120]
[330474577,1719470678274,-606.91,0.00044109,120]
[330474578,1719470678313,-656.81,0.00044109,120]
[330474579,1719470678354,-4053.69,0.00044109,120]
[330474580,1719470678397,-500.0,0.00044109,120]
[330474581,1719470678440,-1623.32,0.00044109,120]
[330474582,1719470678483,-500.0,0.00044109,120]
[330474583,1719470678525,-654.85,0.00044109,120]
[330474584,1719470678567,-552.9,0.00044109,120]
[330474585,1719470678610,-1297.57,0.00044109,120]
[330474586,1719470678653,-453.5497317,0.00044109,120]
[330474587,1719470678697,-1423.34,0.00044109,120]
[330474588,1719470678740,-1928.61,0.00044109,120]
[330474589,1719470678784,-1548.18,0.00044109,120]
[330474590,1719470678825,-500.0,0.00044109,120]
[330474591,1719470678867,-797.49,0.00044109,120]
[330474592,1719470678910,-603.51210571,0.00044109,120]
[330474593,1719470678953,-568.96250661,0.00044109,120]
[330474594,1719470679212,-500.0,0.00044109,120]
[330474595,1719470679255,-1130.37,0.00044109,120]
[330474596,1719470679298,-534.71602146,0.00044109,120]
[330474597,1719470679342,-1267.08,0.00044109,120]
[330474598,1719470679385,-500.0,0.00044109,120]
[330474599,1719470679431,-504.28,0.00044109,120]
[330474600,1719470679475,-1862.28,0.00044109,120]
[330474601,1719470679515,-500.0,0.00044109,120]
[330474602,1719470679558,-500.0,0.00044109,120]
[330474603,1719470679600,-500.0,0.00044109,120]
[330474604,1719470679642,-560.09,0.00044109,120]
[330474605,1719470679684,-500.0,0.00044109,120]
[330474606,1719470679726,-500.0,0.00044109,120]
[330474607,1719470679767,-3128.17,0.00044109,120]
[330474608,1719470679808,-500.0,0.00044109,120]
[330474609,1719470679850,-500.0,0.00044109,120]
[330474610,1719470679893,-851.58,0.00044109,120]
[330474611,1719470679935,-766.04,0.00044109,120]
[330474612,1719470679979,-500.0,0.00044109,120]
[330474613,1719470680029,-507.85,0.00044109,120]
[330474614,1719470680073,-798.94,0.00044109,120]
[330474615,1719470680116,-1773.55,0.00044109,120]
[330474616,1719470680158,-494.20036091,0.00044109,120]
[330474617,1719470680202,-500.0,0.00044109,120]
[330474618,1719470680247,-1353.25,0.00044109,120]
[330474619,1719470680292,-200.0,0.00044109,120]
[330474620,1719470680335,-500.0,0.00044109,120]
[330474621,1719470680378,-500.0,0.00044109,120]
[330474622,1719470680422,-1674.58,0.00044109,120]
[330474623,1719470680466,-500.0,0.00044109,120]
[330474624,1719470680510,-500.0,0.00044109,120]
[330474625,1719470680553,-500.0,0.00044109,120]
[330474626,1719470680598,-651.37,0.00044109,120]
[330474627,1719470680641,-655.48,0.00044109,120]
[330474628,1719470680685,-3049.52,0.00044109,120]
[330474629,1719470680729,-592.0,0.00044109,120]
[330474630,1719470680772,-500.0,0.00044109,120]
[330474631,1719470680814,-858.84,0.00044109,120]
[330474632,1719470680858,-787.74,0.00044109,120]
[330474633,1719470680900,-3145.75,0.00044109,120]
[330474634,1719470680943,-3098.43,0.00044109,120]
[330474635,1719470680990,-500.0,0.00044109,120]
[330474636,1719470681033,-3659.1,0.00044109,120]
[330474637,1719470681080,-500.0,0.00044109,120]
[330474638,1719470681126,-500.0,0.00044109,120]
[330474639,1719470681170,-746.47,0.00044109,120]
[330474640,1719470681212,-500.0,0.00044109,120]
[330474641,1719470681257,-1341.57,0.00044109,120]
[330474642,1719470681304,-898.43,0.00044109,120]
[330474643,1719470681349,-934.72,0.00044109,120]
[330474644,1719470681394,-500.0,0.00044109,120]
[330474645,1719470681437,-500.0,0.00044109,120]
[330474646,1719470681483,-706.58,0.00044109,120]
[330474647,1719470681524,-1650.24,0.00044109,120]
[330474648,1719470681567,-5133.18,0.00044109,120]
[330474649,1719470681609,-697.55,0.00044109,120]
[330474650,1719470681651,-500.0,0.00044109,120]
[330474651,1719470681691,-2690.47,0.00044109,120]
[330474652,1719470681733,-1378.4,0.00044109,120]
[330474653,1719470681775,-500.0,0.00044109,120]
[330474654,1719470681815,-500.0,0.00044109,120]
[330474655,1719470681856,-478.65923049,0.00044109,120]
[330474656,1719470681897,-186.80583647,0.00044109,120]
[330474657,1719470681942,-500.0,0.00044109,120]
[330474658,1719470681987,-3275.62,0.00044109,120]
[330474659,1719470682027,-2226.22,0.00044109,120]
[330474660,1719470682071,-2016.9,0.00044109,120]
[330474661,1719470682117,-500.0,0.00044109,120]
[330474662,1719470682159,-546.26,0.00044109,120]
[330474663,1719470682201,-717.57,0.00044109,120]
[330474664,1719470682243,-1240.27,0.00044109,120]
[330474665,1719470682284,-500.0,0.00044109,120]
[330474666,1719470682328,-2456.48,0.00044109,120]
[330474667,1719470682369,-3001.87,0.00044109,120]
[330474668,1719470682414,-500.0,0.00044109,120]
[330474669,1719470682456,-2001.44,0.00044109,120]
[330474670,1719470682497,-500.0,0.00044109,120]
[330474671,1719470682538,-500.0,0.00044109,120]
[330474672,1719470682579,-705.33,0.00044109,120]
[330474673,1719470682619,-909.02,0.00044109,120]
[330474674,1719470682659,-1404.89,0.00044109,120]
[330474675,1719470682698,-500.0,0.00044109,120]
[330474676,1719470682739,-2111.06,0.00044109,120]
[330474677,1719470682782,-1426.03,0.00044109,120]
[330474678,1719470682824,-500.0,0.00044109,90]
[330474679,1719470682865,-500.0,0.00044109,120]
[330474680,1719470682906,-500.0,0.00044109,120]
[330474681,1719470682948,-500.0,0.00044109,120]
[330474682,1719470682990,-543.52,0.00044109,120]
[330474683,1719470683033,-766.33,0.00044109,120]
[330474684,1719470683079,-2623.33,0.00044109,120]
[330474685,1719470683123,-1138.14,0.00044109,120]
[330474686,1719470683167,-500.0,0.00044109,120]
[330474687,1719470683208,-1265.29,0.00044109,120]
[330474688,1719470683249,-500.0,0.00044109,120]
[330474689,1719470683302,-500.0,0.00044109,120]
[330474690,1719470683346,-514.81,0.00044109,120]
[330474691,1719470683389,-1666.66,0.00044109,120]
[330474692,1719470683434,-581.92,0.00044109,120]
[330474693,1719470683477,-1004.76,0.00044109,120]
[330474694,1719470683520,-500.0,0.00044109,120]
[330474695,1719470683563,-500.0,0.00044109,120]
[330474696,1719470683605,-178.74434958,0.00044109,120]
[330474697,1719470683987,-500.0,0.00044109,120]
[330474698,1719470684028,-500.0,0.00044109,120]
[330474699,1719470684072,-3064.68,0.00044109,120]
[330474700,1719470684121,-2680.71,0.00044109,120]
[330474701,1719470684164,-930.25,0.00044109,120]
[330474702,1719470684208,-500.0,0.00044109,120]
[330474703,1719470684256,-1479.68,0.00044109,120]
[330474704,1719470684303,-590.84830952,0.00044109,120]
[330474705,1719470684348,-500.0,0.00044109,120]
[330474706,1719470684392,-500.0,0.00044109,120]
[330474707,1719470684434,-500.0,0.00044109,120]
[330474708,1719470684476,-500.0,0.00044109,120]
[330474709,1719470684524,-500.0,0.00044109,120]
[330474710,1719470684570,-2451.34,0.00044109,120]
[330474711,1719470684615,-2023.42,0.00044109,120]
[330474712,1719470684658,-578.60060439,0.00044109,120]
[330474713,1719470684701,-2611.74,0.00044109,120]
[330474714,1719470684752,-500.0,0.00044109,120]
[330474715,1719470684795,-500.0,0.00044109,120]
[330474716,1719470684838,-500.0,0.00044109,120]
[330474717,1719470684884,-978.8,0.00044109,120]
[330474718,1719470684928,-500.0,0.00044109,120]
[330474719,1719470684974,-2616.18,0.00044109,120]
[330474720,1719470685020,-500.0,0.00044109,120]
[330474721,1719470685064,-2291.15,0.00044109,120]
[330474722,1719470685110,-2364.1,0.00044109,120]
[330474723,1719470685158,-500.0,0.00044109,120]
[330474724,1719470685201,-672.7,0.00044109,120]
[330474725,1719470685246,-500.0,0.00044109,120]
[330474726,1719470685292,-500.0,0.00044109,120]
[330474727,1719470685336,-500.0,0.00044109,120]
[330474728,1719470685381,-500.0,0.00044109,120]
[330474729,1719470685427,-2560.25,0.00044109,120]
[330474730,1719470685473,-1036.84,0.00044109,120]
[330474731,1719470685518,-701.12,0.00044109,120]
[330474732,1719470685564,-500.0,0.00044109,120]
[330474733,1719470685610,-500.0,0.00044109,120]
[330474734,1719470685656,-2135.13,0.00044109,120]
[330474735,1719470685700,-500.0,0.00044109,120]
[330474736,1719470685745,-500.0,0.00044109,120]
[330474737,1719470685790,-500.0,0.00044109,120]
[330474738,1719470685837,-504.37528806,0.00044109,120]
[330474739,1719470685880,-808.79,0.00044109,120]
[330474740,1719470685924,-590.89,0.00044109,120]
[330474741,1719470685968,-500.0,0.00044109,120]
[330474742,1719470686013,-549.40350557,0.00044109,120]
[330474743,1719470686059,-500.0,0.00044109,120]
[330474744,1719470686105,-4167.28,0.00044109,120]
[330474745,1719470686150,-500.0,0.00044109,120]
[330474746,1719470686194,-500.0,0.00044109,120]
[330474747,1719470686239,-1448.59,0.00044109,120]
[330474748,1719470686284,-500.0,0.00044109,120]
[330474749,1719470686328,-3354.31,0.00044109,120]
[330474750,1719470686372,-500.0,0.00044109,120]
[330474751,1719470686416,-500.0,0.00044109,120]
[330474752,1719470686460,-895.65,0.00044109,120]
[330474753,1719470686503,-500.0,0.00044109,120]
[330474754,1719470686547,-527.89,0.00044109,120]
[330474755,1719470686592,-1718.6,0.00044109,120]
[330474756,1719470686637,-8000.0,0.00044109,120]
[330474757,1719470686681,-1546.39,0.00044109,120]
[330474758,1719470686726,-1364.94,0.00044109,120]
[330474759,1719470686772,-500.0,0.00044109,120]
[330474760,1719470686815,-670.08,0.00044109,120]
[330474761,1719470686859,-500.0,0.00044109,120]
[330474762,1719470686902,-500.0,0.00044109,120]
[330474763,1719470686947,-1064.22,0.00044109,120]
[330474764,1719470686993,-1410.2,0.00044109,120]
[330474765,1719470687037,-500.0,0.00044109,120]
[330474766,1719470687082,-1334.6,0.00044109,120]
[330474767,1719470687129,-500.0,0.00044109,120]
[330474768,1719470687171,-500.0,0.00044109,120]
[330474769,1719470687214,-1166.55,0.00044109,120]
[330474770,1719470687258,-3328.04,0.00044109,120]
[330474771,1719470687301,-596.59,0.00044109,120]
[330474772,1719470687346,-500.0,0.00044109,120]
[330474773,1719470687390,-588.26,0.00044109,120]
[330474774,1719470687432,-500.0,0.00044109,120]
[330474775,1719470687474,-609.25020771,0.00044109,120]
[330474776,1719470687521,-1012.16,0.00044109,120]
[330474777,1719470687563,-2162.35,0.00044109,120]
[330474778,1719470687605,-500.0,0.00044109,120]